bitfinex/quotes_BTCUSD_20220226
["timestamp","ask_amount","ask_price","bid_price","bid_amount"]
[1645836169129,0.19946,40132.0,40094.0,0.21013104]
[1645836169325,0.19946,40132.0,40093.0,0.1998]
[1645836169326,1.39681776,40131.0,40099.0,0.0667695]
[1645836169625,0.0422,40131.0,40099.0,0.01295686]
[1645836169828,0.05,40131.0,40100.0,0.01355986]
[1645836170125,0.19946,40138.0,40102.0,0.01056668]
[1645836170325,0.19946,40127.0,40104.0,0.0667695]
[1645836170526,0.15361137,40122.0,40102.0,0.1998]
[1645836170725,0.19581137,40122.0,40102.0,0.1998]
[1645836170926,0.19581137,40122.0,40093.0,0.1998]
[1645836170927,0.13378477,40115.0,40093.0,0.1998]
[1645836171128,0.0422,40114.0,40092.0,0.2]
[1645836171326,0.04214,40114.0,40111.0,0.005]
[1645836171638,0.04196,40114.0,40111.0,0.005]
[1645836171825,0.19934,40112.0,40111.0,0.005]
[1645836172027,0.19934,40112.0,40092.0,0.009971]
[1645836172028,0.06238,40109.0,40092.0,0.009971]
[1645836172227,0.19934,40103.0,40092.0,0.004971]
[1645836172475,0.0422,40102.0,40090.0,0.0667695]
[1645836172674,0.17700795,40107.0,40091.0,0.372488]
[1645836172675,0.0422,40101.0,40091.0,0.372488]
[1645836172874,0.33738512,40110.0,40091.0,0.372488]
[1645836173074,0.0422,40103.0,40102.0,0.12659999]
[1645836173474,0.24154,40103.0,40102.0,0.12659999]
[1645836173675,0.75939405,40103.0,40102.0,9.999e-05]
[1645836173874,0.42200893,40103.0,40102.0,9.999e-05]
[1645836174076,0.42200893,40103.0,40081.0,0.21]
[1645836174077,1.351514,40103.0,40081.0,0.21]
[1645836174281,1.351514,40103.0,40074.0,0.009974]
[1645836174282,0.19934,40075.0,40074.0,0.009974]
[1645836174478,0.19934,40075.0,40057.0,0.1998]
[1645836174479,0.0422,40075.0,40057.0,0.1998]
[1645836174676,0.0422,40075.0,40051.0,0.15230699]
[1645836174677,0.0422,40075.0,40054.0,0.0667695]
[1645836174875,0.0422,40075.0,40051.0,0.15230699]
[1645836174876,0.0422,40075.0,40056.0,0.0667695]
[1645836175280,0.0422,40075.0,40065.0,0.0667695]
[1645836175476,0.0422,40075.0,40051.0,0.15230699]
[1645836175477,0.0422,40075.0,40054.0,0.1898]
[1645836175678,0.0422,40075.0,40060.0,0.0667695]
[1645836175977,0.0422,40075.0,40051.0,0.01]
[1645836175978,0.0422,40075.0,40069.0,0.2]
[1645836176229,0.0418921,40075.0,40069.0,0.2]
[1645836176430,0.0418921,40075.0,40069.0,0.195]
[1645836176431,0.009982,40074.0,40069.0,0.195]
[1645836176630,0.0422,40073.0,40069.0,0.195]
[1645836176837,0.009982,40072.0,40062.0,0.0667695]
[1645836177030,0.009982,40072.0,40059.0,0.0667695]
[1645836177436,0.009982,40072.0,40071.0,0.0667695]
[1645836177633,0.009982,40072.0,40051.0,0.0216573]
[1645836177634,0.33727864,40087.0,40072.0,0.403094]
[1645836177935,0.22384,40104.0,40072.0,0.403094]
[1645836177936,0.0422,40086.0,40084.0,0.0667695]
[1645836178132,0.0001,40100.0,40072.0,0.403094]
[1645836178133,0.25977762,40098.0,40085.0,0.373148]
[1645836178332,0.25977762,40098.0,40079.0,0.0999]
[1645836178333,0.0422,40097.0,40079.0,0.0999]
[1645836178533,0.00597,40096.0,40079.0,0.0949]
[1645836178739,0.15968248,40080.0,40076.0,0.195]
[1645836178937,0.37947864,40079.0,40076.0,0.195]
[1645836179134,0.048175,40079.0,40076.0,0.195]
[1645836179337,0.048175,40079.0,40078.0,0.4399175]
[1645836179338,0.005975,40079.0,40078.0,0.4399175]
[1645836179535,0.005975,40079.0,40078.0,0.373148]
[1645836179744,0.0422,40094.0,40076.0,0.195]
[1645836179745,0.33695956,40093.0,40076.0,0.195]
[1645836179973,0.0422,40092.0,40076.0,0.195]
[1645836180173,0.1672709,40082.0,40076.0,0.195]
[1645836180374,0.1672709,40082.0,40076.0,0.19476]
[1645836180776,1.64352562,40101.0,40076.0,0.19476]
[1645836180777,1.64352562,40101.0,40081.0,0.0667695]
[1645836180778,0.0422,40091.0,40081.0,0.0667695]
[1645836181085,0.18723632,40117.0,40081.0,0.0667695]
[1645836181086,0.02493,40111.0,40090.0,0.1667695]
[1645836181375,0.01,40129.0,40110.0,0.373148]
[1645836181577,0.01,40129.0,40090.0,0.1]
[1645836181578,0.005969,40128.0,40115.0,0.0667695]
[1645836181777,0.01,40129.0,40116.0,0.8501]
[1645836181980,0.0011,40120.0,40116.0,0.9501]
[1645836182176,0.0011,40120.0,40119.0,0.0667695]
[1645836182374,0.0011,40120.0,40119.0,0.74777]
[1645836182876,0.0011,40120.0,40118.0,0.0945]
[1645836182877,0.17871107,40120.0,40118.0,0.0945]
[1645836183276,0.17871107,40120.0,40105.0,0.0667695]
[1645836183728,0.1657421,40113.0,40106.0,0.00042604]
[1645836183925,0.2157421,40113.0,40106.0,0.00042604]
[1645836184125,0.2157421,40113.0,40098.0,0.2615295]
[1645836184126,0.17689802,40102.0,40098.0,0.0667695]
[1645836184323,0.17689802,40102.0,40087.0,0.0945]
[1645836184530,0.009976,40101.0,40087.0,0.0945]
[1645836184723,0.009976,40101.0,40087.0,0.0664465]
[1645836184927,0.14395091,40095.0,40087.0,0.0664465]
[1645836185129,0.009976,40111.0,40083.0,0.0664465]
[1645836185130,0.14867972,40088.0,40083.0,0.0664465]
[1645836185434,0.0422,40102.0,40080.0,0.3360174]
[1645836185629,0.0422,40102.0,40078.0,0.00022252]
[1645836185630,0.0422,40101.0,40087.0,0.0664465]
[1645836185829,0.0422,40105.0,40086.0,0.0664465]
[1645836186025,0.009976,40104.0,40086.0,0.0664465]
[1645836186225,0.009976,40104.0,40083.0,0.0664465]
[1645836186423,0.17816157,40091.0,40083.0,0.0664465]
[1645836186831,0.14660908,40084.0,40083.0,0.0664465]
[1645836187228,0.19934,40103.0,40079.0,0.3360174]
[1645836187229,0.009979,40102.0,40079.0,0.3360174]
[1645836187466,0.19934,40103.0,40099.0,0.19476]
[1645836187467,0.062399,40100.0,40099.0,0.19476]
[1645836187867,0.75,40099.0,40078.0,0.00022252]
[1645836188067,0.8,40099.0,40081.0,0.0664465]
[1645836188269,0.062399,40100.0,40089.0,4.65e-06]
[1645836188270,0.13987696,40090.0,40089.0,4.65e-06]
[1645836188467,0.062399,40100.0,40086.0,0.0664465]
[1645836188669,0.062399,40100.0,40087.0,0.005002]
[1645836188868,0.85,40099.0,40086.0,0.0004262]
[1645836189068,0.062399,40100.0,40099.0,0.2]
[1645836189270,0.18831942,40120.0,40099.0,0.2]
[1645836189271,0.18721,40108.0,40099.0,0.2]
[1645836189469,0.386538,40118.0,40099.0,0.2]
[1645836189470,0.17280855,40105.0,40099.0,0.2]
[1645836189669,0.0011,40120.0,40099.0,0.0664465]
[1645836189874,1.0011,40120.0,40100.0,0.33628426]
[1645836190071,6.758e-05,40114.0,40100.0,0.33628426]
[1645836190271,6.758e-05,40114.0,40112.0,0.0664465]
[1645836190470,0.0011,40120.0,40112.0,0.1323965]
[1645836190671,0.14788415,40129.0,40119.0,0.0664465]
[1645836190872,0.00753785,40129.0,40126.0,0.0664465]
[1645836191131,7.85e-06,40129.0,40127.0,0.38628426]
[1645836191330,0.0002,40142.0,40129.0,0.373148]
[1645836191530,1.67001904,40167.0,40141.0,0.0664465]
[1645836191735,0.01301877,40167.0,40153.0,0.85]
[1645836191932,0.0011,40174.0,40160.0,0.0664465]
[1645836192140,0.01469264,40183.0,40173.0,0.0664465]
[1645836192141,0.001,40183.0,40173.0,0.0664465]
[1645836192332,0.008246,40204.0,40179.0,0.0664465]
[1645836192635,0.008246,40204.0,40180.0,1.55943226]
[1645836192829,0.008246,40204.0,40181.0,0.415348]
[1645836193031,0.0999,40195.0,40192.0,0.0664465]
[1645836193230,0.0949,40195.0,40192.0,0.4395945]
[1645836193532,0.43612526,40199.0,40155.0,0.52]
[1645836193533,0.099841,40199.0,40194.0,0.373148]
[1645836193731,0.099841,40199.0,40195.0,0.373148]
[1645836193933,0.099841,40199.0,40192.0,0.373148]
[1645836194132,0.099841,40199.0,40195.0,0.0664465]
[1645836194336,1.03213101,40200.0,40196.0,1.223148]
[1645836194531,1.83e-06,40201.0,40196.0,1.222048]
[1645836194733,0.00720208,40208.0,40190.0,0.05]
[1645836194734,0.43442831,40224.0,40201.0,0.373148]
[1645836194984,0.00011096,40225.0,40200.0,0.05]
[1645836194985,0.80374919,40288.0,40218.0,0.1664465]
[1645836195185,0.0103247,40289.0,40236.0,0.04886213]
[1645836195186,1.0,40249.0,40236.0,0.04886213]
[1645836195383,0.5,40289.0,40236.0,0.04886213]
[1645836195384,0.0335535,40287.0,40255.0,0.36107189]
[1645836195580,0.062144,40282.0,40281.0,0.99851]
[1645836195779,0.00597,40286.0,40281.0,1.40322002]
[1645836195980,0.0082301,40307.0,40285.0,0.620507]
[1645836195981,0.03212809,40296.0,40285.0,0.620507]
[1645836196180,2.54059234,40304.0,40293.0,1.985]
[1645836196382,0.13831572,40303.0,40294.0,0.74444]
[1645836196680,0.017818,40292.0,40277.0,0.2]
[1645836196884,0.08385198,40318.0,40295.0,0.2]
[1645836197081,0.08385198,40318.0,40296.0,0.620507]
[1645836197082,0.008909,40304.0,40296.0,0.620507]
[1645836197282,0.253126,40321.0,40303.0,0.620507]
[1645836197283,0.10457598,40321.0,40303.0,0.620507]
[1645836197481,0.10457598,40321.0,40320.0,0.0714465]
[1645836197685,0.13334172,40317.0,40310.0,0.371092]
[1645836197894,0.10457598,40321.0,40302.0,0.356092]
[1645836197895,0.0999,40312.0,40302.0,0.356092]
[1645836198086,0.0999,40312.0,40275.0,0.82407623]
[1645836198087,0.17578497,40278.0,40271.0,0.009923]
[1645836198287,0.44080097,40278.0,40277.0,2.07413656]
[1645836198481,0.1,40306.0,40277.0,1.32930656]
[1645836198731,0.260016,40305.0,40304.0,0.554897]
[1645836198929,0.260016,40305.0,40279.0,0.56034048]
[1645836198930,0.255016,40305.0,40293.0,0.554897]
[1645836199231,0.1998,40290.0,40261.0,0.01]
[1645836199429,0.1,40297.0,40288.0,0.403797]
[1645836199430,0.254997,40289.0,40288.0,0.403797]
[1645836199630,0.254997,40289.0,40275.0,0.0936]
[1645836199631,0.254997,40289.0,40283.0,0.402797]
[1645836199827,0.254997,40288.0,40262.0,0.2]
[1645836200028,0.254997,40288.0,40261.0,0.01]
[1645836200029,0.59733883,40287.0,40261.0,0.01]
[1645836200232,0.59733883,40287.0,40254.0,0.0936]
[1645836200233,0.01621819,40285.0,40254.0,0.0936]
[1645836200430,0.01621819,40285.0,40258.0,0.7]
[1645836200431,0.254877,40267.0,40258.0,0.7]
[1645836200629,0.0422,40275.0,40239.0,0.20382854]
[1645836200828,1.32592312,40288.0,40259.0,0.009934]
[1645836200829,0.84994,40267.0,40259.0,0.009934]
[1645836201038,0.84994,40267.0,40242.0,0.2]
[1645836201039,0.19934,40258.0,40256.0,0.009934]
[1645836201234,0.19934,40258.0,40243.0,0.009936]
[1645836201235,0.09988,40257.0,40243.0,0.009936]
[1645836201430,0.00987,40256.0,40243.0,0.009936]
[1645836201627,0.04214,40261.0,40238.0,0.00012]
[1645836201830,0.09988,40260.0,40238.0,0.00012]
[1645836202028,0.296803,40259.0,40234.0,0.20012]
[1645836202234,0.296803,40259.0,40232.0,0.009938]
[1645836202235,0.24984,40245.0,40232.0,0.009938]
[1645836202479,0.24984,40245.0,40232.0,1.501e-05]
[1645836202480,0.19031993,40238.0,40232.0,1.501e-05]
[1645836202680,0.19031993,40238.0,40206.0,0.20042076]
[1645836202681,0.15432667,40214.0,40206.0,0.00042076]
[1645836202888,0.19031993,40230.0,40214.0,0.42078]
[1645836203078,0.09964,40222.0,40188.0,0.1998]
[1645836203279,0.09964,40210.0,40188.0,0.1998]
[1645836203488,0.19031993,40197.0,40171.0,0.21]
[1645836203684,0.0999,40199.0,40177.0,0.00048]
[1645836203877,0.0422,40198.0,40171.0,0.0225313]
[1645836204077,0.5276,40208.0,40171.0,0.21]
[1645836204078,0.09952,40195.0,40171.0,0.21]
[1645836204379,0.09934,40192.0,40171.0,0.01]
[1645836204577,0.69595883,40192.0,40171.0,0.01]
[1645836204784,0.59727883,40191.0,40171.0,0.01]
[1645836205084,0.09868,40192.0,40175.0,4.27181975]
[1645836205085,0.49382715,40176.0,40175.0,4.27181975]
[1645836205280,0.49382715,40176.0,40171.0,0.01]
[1645836205281,0.53602715,40176.0,40171.0,0.01]
[1645836205481,0.15128926,40162.0,40161.0,0.07277017]
[1645836205679,0.0422,40162.0,40161.0,0.07277017]
[1645836206322,0.0417,40162.0,40161.0,0.06777017]
[1645836206922,0.29550631,40162.0,40143.0,0.00132]
[1645836207124,0.29550631,40162.0,40141.0,0.0211915]
[1645836207125,0.09868,40149.0,40141.0,0.0211915]
[1645836207327,0.09868,40149.0,40127.0,0.2]
[1645836207328,0.0422,40148.0,40127.0,0.2]
[1645836207625,0.59727883,40147.0,40128.0,0.74743]
[1645836207823,0.59727883,40147.0,40114.0,0.00132]
[1645836207824,0.2496,40138.0,40114.0,0.00132]
[1645836208028,0.2496,40138.0,40113.0,0.2]
[1645836208029,0.59727883,40137.0,40113.0,0.2]
[1645836208222,0.0422,40137.0,40117.0,0.00132]
[1645836208424,0.0422,40137.0,40119.0,0.25769]
[1645836208625,0.09868,40135.0,40119.0,0.25769]
[1645836208825,0.15,40141.0,40119.0,0.25769]
[1645836208826,0.2496,40126.0,40119.0,0.25725728]
[1645836209026,0.63947883,40134.0,40127.0,0.49919999]
[1645836209027,0.19031993,40134.0,40127.0,0.49919999]
[1645836209228,0.02479,40142.0,40127.0,0.49919999]
[1645836209229,0.14728722,40129.0,40127.0,0.49919999]
[1645836209425,0.09868,40139.0,40127.0,0.49919999]
[1645836209625,0.09868,40139.0,40119.0,0.25725728]
[1645836209626,0.85,40127.0,40119.0,0.25725728]
[1645836209877,0.0012,40122.0,40119.0,0.25725728]
[1645836210076,0.0422,40121.0,40119.0,0.25725728]
[1645836210476,0.0012,40122.0,40120.0,0.33628426]
[1645836210680,0.0012,40122.0,40121.0,0.00132]
[1645836210881,0.009969,40148.0,40121.0,0.01100007]
[1645836211079,0.5276,40149.0,40132.0,0.1]
[1645836211278,0.0999,40153.0,40149.0,0.00968007]
[1645836211484,0.052162,40166.0,40158.0,0.00968007]
[1645836211783,0.0011,40176.0,40152.0,0.01324762]
[1645836211979,0.009959,40175.0,40161.0,0.00968007]
[1645836212383,0.009958,40175.0,40168.0,0.00968007]
[1645836212581,8e-06,40175.0,40174.0,0.10968007]
[1645836212778,0.001,40203.0,40174.0,0.88424324]
[1645836212779,0.008307,40189.0,40174.0,0.88424324]
[1645836212979,0.008307,40189.0,40177.0,0.00968007]
[1645836213181,0.59727883,40187.0,40177.0,0.2]
[1645836213380,0.008307,40189.0,40147.0,0.01027619]
[1645836213381,0.19031993,40182.0,40147.0,0.01027619]
[1645836213619,0.15,40185.0,40150.0,0.2]
[1645836213620,0.19031993,40170.0,40150.0,0.2]
[1645836213824,0.15,40174.0,40150.0,0.2]
[1645836213825,0.59727883,40167.0,40150.0,0.2]
[1645836214023,0.19031993,40158.0,40141.0,0.2]
[1645836214220,0.19031993,40158.0,40127.0,0.00022051]
[1645836214221,0.13371501,40142.0,40127.0,0.20022051]
[1645836214418,0.0422,40157.0,40127.0,0.20022051]
[1645836214419,0.0422,40157.0,40145.0,0.40114503]
[1645836214618,0.02587618,40157.0,40145.0,0.39614503]
[1645836214821,0.02587618,40157.0,40150.0,0.371842]
[1645836215020,0.02587618,40157.0,40152.0,0.00968007]
[1645836215422,0.0099,40161.0,40157.0,0.371842]
[1645836215619,0.1009,40175.0,40160.0,0.00968007]
[1645836215827,0.1009,40175.0,40173.0,0.00968007]
[1645836216019,0.001,40175.0,40161.0,0.00930708]
[1645836216219,0.001,40175.0,40169.0,0.2]
[1645836216422,0.1795691,40167.0,40162.0,0.2]
[1645836216621,0.009959,40166.0,40162.0,0.2]
[1645836216823,0.60723783,40166.0,40147.0,0.2]
[1645836217021,0.60723783,40166.0,40145.0,0.39614503]
[1645836217022,0.19031993,40159.0,40145.0,0.39614503]
[1645836217226,0.15,40151.0,40145.0,0.39614503]
[1645836217483,0.17657569,40149.0,40127.0,0.00022051]
[1645836217685,0.17437868,40128.0,40127.0,0.00022051]
[1645836217885,0.64727883,40147.0,40129.0,0.52313604]
[1645836217886,0.34625226,40146.0,40129.0,0.52313604]
[1645836218085,0.1,40147.0,40129.0,0.52313604]
[1645836218286,0.0608398,40150.0,40146.0,0.51240124]
[1645836218489,0.06257096,40186.0,40129.0,0.50813604]
[1645836218490,0.00024396,40186.0,40150.0,0.371842]
[1645836218689,0.00024396,40186.0,40170.0,0.1]
[1645836218886,0.00024396,40186.0,40157.0,0.01083316]
[1645836219086,0.009958,40174.0,40168.0,0.01173544]
[1645836219486,0.009958,40174.0,40168.0,0.00205537]
[1645836219886,0.009958,40174.0,40151.0,0.3416504]
[1645836219887,0.14288451,40152.0,40151.0,0.3416504]
[1645836220085,0.009958,40174.0,40151.0,0.3416504]
[1645836220086,0.85,40173.0,40151.0,0.74717]
[1645836220288,0.85,40173.0,40146.0,0.3416504]
[1645836220289,0.01354569,40171.0,40146.0,0.3416504]
[1645836220484,0.009959,40172.0,40150.0,0.00968007]
[1645836220789,0.15651695,40183.0,40138.0,0.3]
[1645836220790,0.009959,40173.0,40153.0,0.00968007]
[1645836220987,0.009959,40174.0,40153.0,0.20968007]
[1645836221270,0.009959,40174.0,40157.0,0.00968007]
[1645836221469,0.009959,40174.0,40154.0,0.3416504]
[1645836221470,0.009959,40174.0,40160.0,0.00968007]
[1645836221672,0.009959,40174.0,40154.0,0.3416504]
[1645836221673,0.009959,40174.0,40164.0,0.00968007]
[1645836221870,0.17606891,40195.0,40175.0,0.089041]
[1645836221871,0.30411184,40195.0,40175.0,0.089041]
[1645836222072,0.1511,40199.0,40175.0,0.089041]
[1645836222073,0.0011,40199.0,40175.0,0.074041]
[1645836222271,0.0011,40199.0,40176.0,0.7134924]
[1645836222473,0.0011,40199.0,40184.0,0.00968007]
[1645836222474,0.003741,40188.0,40184.0,0.00968007]
[1645836222869,0.003742,40198.0,40191.0,0.02783699]
[1645836223270,0.13757117,40196.0,40191.0,0.02783699]
[1645836223471,0.003744,40195.0,40191.0,0.35731681]
[1645836223673,0.003744,40195.0,40181.0,0.2]
[1645836223674,0.85,40195.0,40181.0,0.2]
[1645836223871,0.85,40195.0,40176.0,0.32947982]
[1645836223872,0.13136694,40182.0,40176.0,0.2]
[1645836224070,0.1,40194.0,40175.0,0.074041]
[1645836224272,0.1,40194.0,40175.0,0.06729904]
[1645836224273,0.1,40190.0,40175.0,0.06729904]
[1645836224470,0.69727883,40190.0,40175.0,0.06729904]
[1645836224672,0.003745,40194.0,40170.0,6.05e-06]
[1645836224673,0.1,40179.0,40170.0,6.05e-06]
[1645836224881,0.63947883,40178.0,40170.0,6.05e-06]
[1645836225084,0.1,40172.0,40167.0,6.05e-06]
[1645836225281,0.1,40172.0,40145.0,0.009957]
[1645836225282,0.0422,40171.0,40145.0,0.009957]
[1645836225480,0.15,40178.0,40145.0,0.009957]
[1645836225481,0.05,40179.0,40167.0,0.2]
[1645836225684,1.54657129,40183.0,40167.0,0.2]
[1645836225880,1.54657129,40183.0,40164.0,0.19]
[1645836226084,0.0999,40188.0,40165.0,0.33943582]
[1645836226288,0.0011,40202.0,40174.0,0.00968007]
[1645836226481,0.0011,40202.0,40167.0,0.32947982]
[1645836226680,0.0011,40202.0,40160.0,0.2]
[1645836226681,0.103748,40198.0,40173.0,0.00968007]
[1645836226880,0.003748,40198.0,40174.0,0.00968007]
[1645836227081,0.14624727,40190.0,40169.0,0.32947982]
[1645836227279,0.14624727,40190.0,40159.0,0.00971352]
[1645836227280,0.17057224,40170.0,40161.0,0.52947982]
[1645836227481,0.19641993,40199.0,40172.0,0.34114448]
[1645836227482,0.1,40185.0,40172.0,0.34114448]
[1645836227680,0.13856294,40195.0,40172.0,0.34114448]
[1645836227681,0.003752,40184.0,40172.0,0.34114448]
[1645836227879,0.01363801,40190.0,40172.0,0.34114448]
[1645836227880,0.0422,40187.0,40172.0,0.34114448]
[1645836228080,0.0422,40187.0,40153.0,0.33943482]
[1645836228081,0.1,40176.0,40153.0,0.33943482]
[1645836228285,0.1,40176.0,40141.0,0.01]
[1645836228286,0.1,40171.0,40148.0,0.2]
[1645836228485,0.1,40165.0,40146.0,0.009959]
[1645836228730,0.16733973,40147.0,40146.0,0.009959]
[1645836228929,0.20953973,40147.0,40141.0,0.01]
[1645836229427,0.0422,40147.0,40141.0,0.01]
[1645836229629,0.0422,40147.0,40130.0,0.33944282]
[1645836229630,0.85,40166.0,40142.0,0.009964]
[1645836229926,0.0422,40165.0,40142.0,0.009964]
[1645836230125,0.0422,40165.0,40135.0,0.32947982]
[1645836230329,0.14564926,40158.0,40135.0,0.32947982]
[1645836230530,0.0422,40157.0,40136.0,0.77456317]
[1645836230731,0.0245,40171.0,40137.0,0.2]
[1645836230732,0.0999,40167.0,40137.0,0.2]
[1645836230930,0.02479,40178.0,40130.0,0.2]
[1645836230931,0.37947982,40166.0,40145.0,0.1]
[1645836231129,0.04976,40166.0,40145.0,0.1]
[1645836231329,0.04976,40166.0,40146.0,0.32947982]
[1645836231538,0.13400703,40154.0,40146.0,0.32947982]
[1645836231728,0.062296,40175.0,40146.0,0.32947982]
[1645836231930,0.0422,40170.0,40147.0,0.00996]
[1645836232132,0.59727883,40167.0,40147.0,0.00996]
[1645836232395,0.59727883,40165.0,40138.0,0.00996]
[1645836232593,0.0422,40164.0,40138.0,0.00996]
[1645836233197,0.0422,40164.0,40139.0,0.371842]
[1645836233393,0.0422,40164.0,40148.0,0.1]
[1645836233593,0.0422,40164.0,40142.0,0.1]
[1645836233793,0.0422,40164.0,40145.0,0.2]
[1645836233794,0.1571093,40146.0,40145.0,0.2]
[1645836233994,0.0422,40164.0,40136.0,0.009963]
[1645836234199,0.003757,40163.0,40136.0,0.009963]
[1645836234393,0.0422,40162.0,40136.0,0.32988802]
[1645836234594,0.003758,40161.0,40136.0,0.32988802]
[1645836234792,0.003758,40161.0,40132.0,0.32384461]
[1645836234793,0.32368302,40161.0,40132.0,0.32384461]
[1645836234993,0.32368302,40161.0,40134.0,0.1]
[1645836235192,0.32368302,40161.0,40138.0,0.1]
[1645836235394,0.003758,40161.0,40139.0,0.009962]
[1645836235594,0.003758,40161.0,40141.0,0.1]
[1645836235794,0.003758,40161.0,40145.0,0.104994]
[1645836235993,0.32368302,40161.0,40145.0,0.104994]
[1645836236225,0.77266717,40160.0,40145.0,0.104994]
[1645836236424,0.062312,40157.0,40138.0,0.009962]
[1645836236620,2.062312,40157.0,40134.0,0.32988802]
[1645836236822,2.062312,40157.0,40134.0,0.31992502]
[1645836237220,0.0422,40156.0,40131.0,0.371842]
[1645836237420,0.0422,40156.0,40130.0,0.41992502]
[1645836237421,0.0422,40156.0,40132.0,0.32988902]
[1645836237621,0.17508279,40133.0,40132.0,0.32988902]
[1645836237821,0.15883119,40144.0,40140.0,0.35016557]
[1645836238021,0.15883119,40144.0,40132.0,0.0032]
[1645836238022,0.17852197,40133.0,40132.0,0.0032]
[1645836238624,0.17852197,40133.0,40119.0,0.25725728]
[1645836238625,0.13461163,40121.0,40119.0,0.25725728]
[1645836238823,0.0032,40132.0,40121.0,0.26922326]
[1645836238824,0.062363,40122.0,40121.0,0.26922326]
[1645836239025,0.85,40125.0,40100.0,10.0]
[1645836239329,0.85,40125.0,40091.0,0.03001137]
[1645836239330,0.34531993,40120.0,40112.0,7e-05]
[1645836239524,0.34531993,40120.0,40093.0,0.2]
[1645836239525,0.59727883,40113.0,40093.0,0.11716]
[1645836239723,0.59727883,40107.0,40091.0,0.0207175]
[1645836239983,0.124782,40110.0,40095.0,0.14370294]
[1645836239984,0.95940385,40106.0,40095.0,0.14370294]
[1645836240180,0.0422,40105.0,40096.0,0.009974]
[1645836240480,0.0422,40104.0,40095.0,0.05367694]
[1645836240681,0.104591,40109.0,40097.0,0.1]
[1645836240876,0.0422,40115.0,40104.0,0.1]
[1645836241079,0.0999,40120.0,40114.0,0.1]
[1645836241284,0.187086,40151.0,40110.0,0.40272117]
[1645836241285,0.0999,40127.0,40119.0,0.50272117]
[1645836241479,0.0999,40127.0,40126.0,0.1]
[1645836241681,0.009968,40149.0,40126.0,0.09891835]
[1645836241879,0.062322,40155.0,40128.0,0.09891835]
[1645836241880,0.009965,40154.0,40128.0,0.09891835]
[1645836242078,0.009965,40154.0,40127.0,0.31992502]
[1645836242079,0.60724383,40154.0,40127.0,0.31992502]
[1645836242280,0.60724383,40154.0,40126.0,5.02e-06]
[1645836242281,25.85,40153.0,40126.0,5.02e-06]
[1645836242481,25.85,40153.0,40112.0,0.11706605]
[1645836242482,0.59727883,40140.0,40112.0,0.11706605]
[1645836242680,0.15864,40143.0,40096.0,0.0999]
[1645836242681,0.8,40113.0,40096.0,0.0999]
[1645836242977,0.19531993,40100.0,40096.0,0.0999]
[1645836243177,0.55,40105.0,40082.0,0.00997955]
[1645836243377,0.31992502,40104.0,40082.0,0.00997955]
[1645836243639,0.3908741,40100.0,40082.0,0.00997955]
[1645836243834,0.36212502,40099.0,40082.0,0.00997955]
[1645836244035,0.29280856,40124.0,40083.0,0.78454017]
[1645836244036,0.0422,40098.0,40083.0,0.78454017]
[1645836244234,0.0422,40103.0,40086.0,0.0099]
[1645836244437,0.31992502,40118.0,40086.0,0.0099]
[1645836244438,0.0422,40105.0,40086.0,0.0099]
[1645836244636,0.0422,40105.0,40083.0,0.009977]
[1645836244638,0.36212502,40104.0,40083.0,0.009977]
[1645836244843,0.6908741,40094.0,40083.0,0.009977]
[1645836245136,0.2032781,40092.0,40083.0,0.009977]
[1645836245336,0.55,40085.0,40083.0,7e-06]
[1645836245537,0.55,40085.0,40074.0,8e-06]
[1645836245538,0.1408741,40080.0,40074.0,8e-06]
[1645836245740,0.0422,40079.0,40074.0,8e-06]
[1645836246737,0.31992502,40078.0,40074.0,8e-06]
[1645836246941,0.31992502,40078.0,40072.0,6e-06]
[1645836246942,0.0422,40077.0,40072.0,6e-06]
[1645836247140,0.1,40073.0,40072.0,6e-06]
[1645836247382,0.36212502,40073.0,40051.0,0.01]
[1645836247583,0.36212502,40073.0,40068.0,9.15e-06]
[1645836247584,0.3,40070.0,40068.0,9.15e-06]
[1645836247783,0.36212502,40069.0,40051.0,0.01]
[1645836247982,0.124919,40067.0,40051.0,0.01]
[1645836248185,0.062436,40071.0,40067.0,0.332557]
[1645836248382,0.249786,40076.0,40067.0,0.332557]
[1645836248383,0.0422,40075.0,40067.0,0.332557]
[1645836248583,0.0422,40074.0,40067.0,0.332557]
[1645836248782,0.0422,40074.0,40051.0,0.01]
[1645836248783,0.17550446,40071.0,40051.0,0.01]
[1645836248984,1.21212502,40073.0,40052.0,0.16620346]
[1645836248985,0.17550446,40067.0,40052.0,0.16620346]
[1645836249182,0.0422,40066.0,40059.0,0.00017318]
[1645836249885,0.0422,40066.0,40052.0,0.16137664]
[1645836250184,0.0422,40066.0,40053.0,0.31992502]
[1645836250384,0.0422,40066.0,40051.0,0.01]
[1645836250583,0.0422,40066.0,40051.0,0.005]
[1645836250785,0.0422,40066.0,40035.0,0.31992502]
[1645836250786,0.17550446,40063.0,40035.0,0.31992502]
[1645836250984,0.062466,40051.0,40021.0,0.23522978]
[1645836251237,0.17550446,40038.0,40021.0,0.01]
[1645836251434,0.0422,40037.0,40023.0,0.13091858]
[1645836251635,0.31992502,40049.0,40023.0,0.12591858]
[1645836251636,0.0422,40036.0,40023.0,0.12591858]
[1645836251833,0.0422,40035.0,40023.0,0.12591858]
[1645836252039,0.0999,40065.0,40029.0,0.1]
[1645836252241,0.05,40067.0,40029.0,0.1]
[1645836252242,1.96015111,40069.0,40040.0,0.371842]
[1645836252433,1.96015111,40069.0,40035.0,0.52932116]
[1645836252434,0.0422,40068.0,40042.0,0.15595446]
[1645836253434,0.17550446,40057.0,40053.0,0.0004736]
[1645836253636,0.1205158,40054.0,40047.0,0.00189467]
[1645836253834,0.2043723,40061.0,40047.0,0.00189467]
[1645836253835,0.0422,40053.0,40047.0,0.00189467]
[1645836254234,0.31992502,40065.0,40047.0,0.00189467]
[1645836254235,0.0422,40064.0,40047.0,0.00189467]
[1645836254434,0.0422,40064.0,40042.0,0.15595446]